{"text_format":"3","workbook":"xlsx","n_sheets":2,"sheets":["Sheet1","MyBets"],"not_rendered":{"macros":1},"read":"whole","date_system":"1900"}

{"sheet":"Sheet1","index":0,"n_rows":55,"n_cols":41,"rows_kept":55}
["Sthl 21st Apr - 17:50 3m Hunt Chs",{"$nulls":4},"Horse Racing\\GB\\Sthl 21st Apr"]
["Last updated:",40289.72121096065,0.7212037037037037,0.021851851851851848,"Not In Play",null,null,"Balance:",23.73,null,"Exposure:",-0.11,"Trans:",0,null,"Refresh rate:"]
["Total matched:",11524.62,null,"Winners",1,"NR",0,"Turn IP","Y",null,"IR Delay",0,"Market id",101342387,"Comm:",5,{"$nulls":17},"EXCEL FORMULA GREENUP"]
["Selection name","Back Odds 3",null,"Back Odds 2",null,"Back Odds 1",null,"Lay Odds 1",null,"Lay Odds 2",null,"Lay Odds 3",null,"Reduction factor","Last price matched","Total amount matched","Trigger","Odds","Stake","Bet ref","Bet time","Avg matched odds","Matched stake","Profit / Loss",{"$nulls":9},"IfWin","IfLose","Green up bet","Odds","Stake",null,null,"Greened up P&L"]
["Coolefind",3.45,82,3.5,71,3.55,5,3.75,13,3.8,216,3.9,111,27.8,3.65,6849.28,{"$nulls":7},115,{"$nulls":9},{"$f":"IF(A5=\"\",\"\",(SUMIFS(MyBets!C:C,MyBets!B:B,A5,MyBets!F:F,\"B\",MyBets!E:E,\"F\")*IFERROR(AVERAGEIFS(MyBets!D:D,MyBets!B:B,A5,MyBets!F:F,\"B\",MyBets!E:E,\"F\")-1,0)-(SUMIFS(MyBets!C:C,MyBets!B:B,A5,MyBets!F:F,\"L\",MyBets!E:E,\"F\")*IFERROR(AVERAGEIFS(MyBets!D:D,MyBets!B:B,A5,MyBets!F:F,\"L\",MyBets!E:E,\"F\")-1,0))))","v":120},{"$f":"IF(A5=\"\",\"\",SUMIFS(MyBets!C:C,MyBets!B:B,A5,MyBets!F:F,\"L\",MyBets!E:E,\"F\")-SUMIFS(MyBets!C:C,MyBets!B:B,A5,MyBets!F:F,\"B\",MyBets!E:E,\"F\"))","v":-20},{"$f":"IF(AH5=AI5,\"\",IF(AH5>AI5,\"LAY\",\"BACK\"))","v":"LAY"},{"$f":"IF(AH5=AI5,\"\",IF(AH5>AI5,IF(H5=0,0,H5),IF(F5=0,0,F5)))","v":3.75},{"$f":"IF(OR(AH5=AI5,AK5=0),\"\",IF(AH5>AI5,(AH5-AI5)/AK5,(AI5-AH5)/AK5))","v":{"v":37.333333333333336,"d":"37.33"}},null,null,{"$f":"IF(A5=\"\",\"\",X5+SUMIF($AJ$5:$AJ$55,\"LAY\",$AL$5:$AL$55)-SUMIF($AJ$5:$AJ$55,\"BACK\",$AL$5:$AL$55)+IF(AJ5=\"LAY\",-AL5*(AK5),IF(AJ5=\"BACK\",AL5*AK5,0)))","v":{"v":13.696969696969688,"d":"13.70"}}]
["Line Ball",4.1,51,4.2,44,4.3,23,4.5,18,4.6,19,5,57,26,4.5,1594.88,{"$nulls":7},-25,{"$nulls":9},{"$f":"IF(A6=\"\",\"\",(SUMIFS(MyBets!C:C,MyBets!B:B,A6,MyBets!F:F,\"B\",MyBets!E:E,\"F\")*IFERROR(AVERAGEIFS(MyBets!D:D,MyBets!B:B,A6,MyBets!F:F,\"B\",MyBets!E:E,\"F\")-1,0)-(SUMIFS(MyBets!C:C,MyBets!B:B,A6,MyBets!F:F,\"L\",MyBets!E:E,\"F\")*IFERROR(AVERAGEIFS(MyBets!D:D,MyBets!B:B,A6,MyBets!F:F,\"L\",MyBets!E:E,\"F\")-1,0))))","v":0},{"$f":"IF(A6=\"\",\"\",SUMIFS(MyBets!C:C,MyBets!B:B,A6,MyBets!F:F,\"L\",MyBets!E:E,\"F\")-SUMIFS(MyBets!C:C,MyBets!B:B,A6,MyBets!F:F,\"B\",MyBets!E:E,\"F\"))","v":0},{"$f":"IF(AH6=AI6,\"\",IF(AH6>AI6,\"LAY\",\"BACK\"))","v":""},"","",null,null,{"v":13.696969696969703,"d":"13.70"}]
["Kadount",6.4,23,6.6,51,6.8,26,7,7,7.2,27,7.4,16,12.2,7,1459.74,{"$nulls":7},-25,{"$nulls":9},{"$f":"IF(A7=\"\",\"\",(SUMIFS(MyBets!C:C,MyBets!B:B,A7,MyBets!F:F,\"B\",MyBets!E:E,\"F\")*IFERROR(AVERAGEIFS(MyBets!D:D,MyBets!B:B,A7,MyBets!F:F,\"B\",MyBets!E:E,\"F\")-1,0)-(SUMIFS(MyBets!C:C,MyBets!B:B,A7,MyBets!F:F,\"L\",MyBets!E:E,\"F\")*IFERROR(AVERAGEIFS(MyBets!D:D,MyBets!B:B,A7,MyBets!F:F,\"L\",MyBets!E:E,\"F\")-1,0))))","v":0},{"$f":"IF(A7=\"\",\"\",SUMIFS(MyBets!C:C,MyBets!B:B,A7,MyBets!F:F,\"L\",MyBets!E:E,\"F\")-SUMIFS(MyBets!C:C,MyBets!B:B,A7,MyBets!F:F,\"B\",MyBets!E:E,\"F\"))","v":0},{"$f":"IF(AH7=AI7,\"\",IF(AH7>AI7,\"LAY\",\"BACK\"))","v":""},"","",null,null,{"v":13.696969696969703,"d":"13.70"}]
["Billyvoddan",8.2,6,8.4,67,8.6,5,9,38,9.2,5,9.8,38,11.1,9.2,689.38,{"$nulls":7},-25,{"$nulls":9},{"$f":"IF(A8=\"\",\"\",(SUMIFS(MyBets!C:C,MyBets!B:B,A8,MyBets!F:F,\"B\",MyBets!E:E,\"F\")*IFERROR(AVERAGEIFS(MyBets!D:D,MyBets!B:B,A8,MyBets!F:F,\"B\",MyBets!E:E,\"F\")-1,0)-(SUMIFS(MyBets!C:C,MyBets!B:B,A8,MyBets!F:F,\"L\",MyBets!E:E,\"F\")*IFERROR(AVERAGEIFS(MyBets!D:D,MyBets!B:B,A8,MyBets!F:F,\"L\",MyBets!E:E,\"F\")-1,0))))","v":0},{"$f":"IF(A8=\"\",\"\",SUMIFS(MyBets!C:C,MyBets!B:B,A8,MyBets!F:F,\"L\",MyBets!E:E,\"F\")-SUMIFS(MyBets!C:C,MyBets!B:B,A8,MyBets!F:F,\"B\",MyBets!E:E,\"F\"))","v":0},"","","",null,null,{"v":13.696969696969703,"d":"13.70"}]
["Inaro",9.6,7,9.8,71,10,21,11,18,11.5,4,12,2,10.6,10.5,373.86,{"$nulls":7},-10,{"$nulls":9},{"$f":"IF(A9=\"\",\"\",(SUMIFS(MyBets!C:C,MyBets!B:B,A9,MyBets!F:F,\"B\",MyBets!E:E,\"F\")*IFERROR(AVERAGEIFS(MyBets!D:D,MyBets!B:B,A9,MyBets!F:F,\"B\",MyBets!E:E,\"F\")-1,0)-(SUMIFS(MyBets!C:C,MyBets!B:B,A9,MyBets!F:F,\"L\",MyBets!E:E,\"F\")*IFERROR(AVERAGEIFS(MyBets!D:D,MyBets!B:B,A9,MyBets!F:F,\"L\",MyBets!E:E,\"F\")-1,0))))","v":10},{"$f":"IF(A9=\"\",\"\",SUMIFS(MyBets!C:C,MyBets!B:B,A9,MyBets!F:F,\"L\",MyBets!E:E,\"F\")-SUMIFS(MyBets!C:C,MyBets!B:B,A9,MyBets!F:F,\"B\",MyBets!E:E,\"F\"))","v":-5},"LAY",11,{"v":1.3636363636363635,"d":"1.36"},null,null,{"v":13.696969696969704,"d":"13.70"}]
["Scotland Yard",10.5,27,11,30,12.5,4,13,2,13.5,28,15.5,15,7,13,339.82,{"$nulls":7},-25,{"$nulls":9},{"$f":"IF(A10=\"\",\"\",(SUMIFS(MyBets!C:C,MyBets!B:B,A10,MyBets!F:F,\"B\",MyBets!E:E,\"F\")*IFERROR(AVERAGEIFS(MyBets!D:D,MyBets!B:B,A10,MyBets!F:F,\"B\",MyBets!E:E,\"F\")-1,0)-(SUMIFS(MyBets!C:C,MyBets!B:B,A10,MyBets!F:F,\"L\",MyBets!E:E,\"F\")*IFERROR(AVERAGEIFS(MyBets!D:D,MyBets!B:B,A10,MyBets!F:F,\"L\",MyBets!E:E,\"F\")-1,0))))","v":0},{"$f":"IF(A10=\"\",\"\",SUMIFS(MyBets!C:C,MyBets!B:B,A10,MyBets!F:F,\"L\",MyBets!E:E,\"F\")-SUMIFS(MyBets!C:C,MyBets!B:B,A10,MyBets!F:F,\"B\",MyBets!E:E,\"F\"))","v":0},"","","",null,null,{"v":13.696969696969703,"d":"13.70"}]
["Took My Eye",26,2,36,6,40,10,46,7,48,6,60,4,2,46,55.82,{"$nulls":7},-25,{"$nulls":9},{"$f":"IF(A11=\"\",\"\",(SUMIFS(MyBets!C:C,MyBets!B:B,A11,MyBets!F:F,\"B\",MyBets!E:E,\"F\")*IFERROR(AVERAGEIFS(MyBets!D:D,MyBets!B:B,A11,MyBets!F:F,\"B\",MyBets!E:E,\"F\")-1,0)-(SUMIFS(MyBets!C:C,MyBets!B:B,A11,MyBets!F:F,\"L\",MyBets!E:E,\"F\")*IFERROR(AVERAGEIFS(MyBets!D:D,MyBets!B:B,A11,MyBets!F:F,\"L\",MyBets!E:E,\"F\")-1,0))))","v":0},{"$f":"IF(A11=\"\",\"\",SUMIFS(MyBets!C:C,MyBets!B:B,A11,MyBets!F:F,\"L\",MyBets!E:E,\"F\")-SUMIFS(MyBets!C:C,MyBets!B:B,A11,MyBets!F:F,\"B\",MyBets!E:E,\"F\"))","v":0},"","","",null,null,{"v":13.696969696969703,"d":"13.70"}]
["Cash In Hand",38,5,40,6,42,2,65,4,70,9,75,4,1.4,40,87,{"$nulls":7},-25,{"$nulls":9},{"$f":"IF(A12=\"\",\"\",(SUMIFS(MyBets!C:C,MyBets!B:B,A12,MyBets!F:F,\"B\",MyBets!E:E,\"F\")*IFERROR(AVERAGEIFS(MyBets!D:D,MyBets!B:B,A12,MyBets!F:F,\"B\",MyBets!E:E,\"F\")-1,0)-(SUMIFS(MyBets!C:C,MyBets!B:B,A12,MyBets!F:F,\"L\",MyBets!E:E,\"F\")*IFERROR(AVERAGEIFS(MyBets!D:D,MyBets!B:B,A12,MyBets!F:F,\"L\",MyBets!E:E,\"F\")-1,0))))","v":0},{"$f":"IF(A12=\"\",\"\",SUMIFS(MyBets!C:C,MyBets!B:B,A12,MyBets!F:F,\"L\",MyBets!E:E,\"F\")-SUMIFS(MyBets!C:C,MyBets!B:B,A12,MyBets!F:F,\"B\",MyBets!E:E,\"F\"))","v":0},"","","",null,null,{"v":13.696969696969703,"d":"13.70"}]
["Prelude Destruval",100,12,120,9,130,2,210,2,940,15,950,15,1,130,14.3,{"$nulls":7},-25,{"$nulls":9},{"$f":"IF(A13=\"\",\"\",(SUMIFS(MyBets!C:C,MyBets!B:B,A13,MyBets!F:F,\"B\",MyBets!E:E,\"F\")*IFERROR(AVERAGEIFS(MyBets!D:D,MyBets!B:B,A13,MyBets!F:F,\"B\",MyBets!E:E,\"F\")-1,0)-(SUMIFS(MyBets!C:C,MyBets!B:B,A13,MyBets!F:F,\"L\",MyBets!E:E,\"F\")*IFERROR(AVERAGEIFS(MyBets!D:D,MyBets!B:B,A13,MyBets!F:F,\"L\",MyBets!E:E,\"F\")-1,0))))","v":0},{"$f":"IF(A13=\"\",\"\",SUMIFS(MyBets!C:C,MyBets!B:B,A13,MyBets!F:F,\"L\",MyBets!E:E,\"F\")-SUMIFS(MyBets!C:C,MyBets!B:B,A13,MyBets!F:F,\"B\",MyBets!E:E,\"F\"))","v":0},"","","",null,null,{"v":13.696969696969703,"d":"13.70"}]
["Media Man",55,7,60,4,95,2,190,3,200,2,790,40,0.9,100,60.54,{"$nulls":7},-25,{"$nulls":9},{"$f":"IF(A14=\"\",\"\",(SUMIFS(MyBets!C:C,MyBets!B:B,A14,MyBets!F:F,\"B\",MyBets!E:E,\"F\")*IFERROR(AVERAGEIFS(MyBets!D:D,MyBets!B:B,A14,MyBets!F:F,\"B\",MyBets!E:E,\"F\")-1,0)-(SUMIFS(MyBets!C:C,MyBets!B:B,A14,MyBets!F:F,\"L\",MyBets!E:E,\"F\")*IFERROR(AVERAGEIFS(MyBets!D:D,MyBets!B:B,A14,MyBets!F:F,\"L\",MyBets!E:E,\"F\")-1,0))))","v":0},{"$f":"IF(A14=\"\",\"\",SUMIFS(MyBets!C:C,MyBets!B:B,A14,MyBets!F:F,\"L\",MyBets!E:E,\"F\")-SUMIFS(MyBets!C:C,MyBets!B:B,A14,MyBets!F:F,\"B\",MyBets!E:E,\"F\"))","v":0},"","","",null,null,{"v":13.696969696969703,"d":"13.70"}]
[{"$nulls":33},{"$f":"IF(A15=\"\",\"\",(SUMIFS(MyBets!C:C,MyBets!B:B,A15,MyBets!F:F,\"B\",MyBets!E:E,\"F\")*IFERROR(AVERAGEIFS(MyBets!D:D,MyBets!B:B,A15,MyBets!F:F,\"B\",MyBets!E:E,\"F\")-1,0)-(SUMIFS(MyBets!C:C,MyBets!B:B,A15,MyBets!F:F,\"L\",MyBets!E:E,\"F\")*IFERROR(AVERAGEIFS(MyBets!D:D,MyBets!B:B,A15,MyBets!F:F,\"L\",MyBets!E:E,\"F\")-1,0))))","v":""},{"$f":"IF(A15=\"\",\"\",SUMIFS(MyBets!C:C,MyBets!B:B,A15,MyBets!F:F,\"L\",MyBets!E:E,\"F\")-SUMIFS(MyBets!C:C,MyBets!B:B,A15,MyBets!F:F,\"B\",MyBets!E:E,\"F\"))","v":""},"","","",null,null,""]
[{"$nulls":33},{"$f":"IF(A16=\"\",\"\",(SUMIFS(MyBets!C:C,MyBets!B:B,A16,MyBets!F:F,\"B\",MyBets!E:E,\"F\")*IFERROR(AVERAGEIFS(MyBets!D:D,MyBets!B:B,A16,MyBets!F:F,\"B\",MyBets!E:E,\"F\")-1,0)-(SUMIFS(MyBets!C:C,MyBets!B:B,A16,MyBets!F:F,\"L\",MyBets!E:E,\"F\")*IFERROR(AVERAGEIFS(MyBets!D:D,MyBets!B:B,A16,MyBets!F:F,\"L\",MyBets!E:E,\"F\")-1,0))))","v":""},{"$f":"IF(A16=\"\",\"\",SUMIFS(MyBets!C:C,MyBets!B:B,A16,MyBets!F:F,\"L\",MyBets!E:E,\"F\")-SUMIFS(MyBets!C:C,MyBets!B:B,A16,MyBets!F:F,\"B\",MyBets!E:E,\"F\"))","v":""},"","","",null,null,""]
[{"$nulls":33},{"$f":"IF(A17=\"\",\"\",(SUMIFS(MyBets!C:C,MyBets!B:B,A17,MyBets!F:F,\"B\",MyBets!E:E,\"F\")*IFERROR(AVERAGEIFS(MyBets!D:D,MyBets!B:B,A17,MyBets!F:F,\"B\",MyBets!E:E,\"F\")-1,0)-(SUMIFS(MyBets!C:C,MyBets!B:B,A17,MyBets!F:F,\"L\",MyBets!E:E,\"F\")*IFERROR(AVERAGEIFS(MyBets!D:D,MyBets!B:B,A17,MyBets!F:F,\"L\",MyBets!E:E,\"F\")-1,0))))","v":""},{"$f":"IF(A17=\"\",\"\",SUMIFS(MyBets!C:C,MyBets!B:B,A17,MyBets!F:F,\"L\",MyBets!E:E,\"F\")-SUMIFS(MyBets!C:C,MyBets!B:B,A17,MyBets!F:F,\"B\",MyBets!E:E,\"F\"))","v":""},"","","",null,null,""]
[{"$nulls":33},{"$f":"IF(A18=\"\",\"\",(SUMIFS(MyBets!C:C,MyBets!B:B,A18,MyBets!F:F,\"B\",MyBets!E:E,\"F\")*IFERROR(AVERAGEIFS(MyBets!D:D,MyBets!B:B,A18,MyBets!F:F,\"B\",MyBets!E:E,\"F\")-1,0)-(SUMIFS(MyBets!C:C,MyBets!B:B,A18,MyBets!F:F,\"L\",MyBets!E:E,\"F\")*IFERROR(AVERAGEIFS(MyBets!D:D,MyBets!B:B,A18,MyBets!F:F,\"L\",MyBets!E:E,\"F\")-1,0))))","v":""},{"$f":"IF(A18=\"\",\"\",SUMIFS(MyBets!C:C,MyBets!B:B,A18,MyBets!F:F,\"L\",MyBets!E:E,\"F\")-SUMIFS(MyBets!C:C,MyBets!B:B,A18,MyBets!F:F,\"B\",MyBets!E:E,\"F\"))","v":""},"","","",null,null,""]
[{"$nulls":33},{"$f":"IF(A19=\"\",\"\",(SUMIFS(MyBets!C:C,MyBets!B:B,A19,MyBets!F:F,\"B\",MyBets!E:E,\"F\")*IFERROR(AVERAGEIFS(MyBets!D:D,MyBets!B:B,A19,MyBets!F:F,\"B\",MyBets!E:E,\"F\")-1,0)-(SUMIFS(MyBets!C:C,MyBets!B:B,A19,MyBets!F:F,\"L\",MyBets!E:E,\"F\")*IFERROR(AVERAGEIFS(MyBets!D:D,MyBets!B:B,A19,MyBets!F:F,\"L\",MyBets!E:E,\"F\")-1,0))))","v":""},{"$f":"IF(A19=\"\",\"\",SUMIFS(MyBets!C:C,MyBets!B:B,A19,MyBets!F:F,\"L\",MyBets!E:E,\"F\")-SUMIFS(MyBets!C:C,MyBets!B:B,A19,MyBets!F:F,\"B\",MyBets!E:E,\"F\"))","v":""},"","","",null,null,""]
[{"$nulls":33},{"$f":"IF(A20=\"\",\"\",(SUMIFS(MyBets!C:C,MyBets!B:B,A20,MyBets!F:F,\"B\",MyBets!E:E,\"F\")*IFERROR(AVERAGEIFS(MyBets!D:D,MyBets!B:B,A20,MyBets!F:F,\"B\",MyBets!E:E,\"F\")-1,0)-(SUMIFS(MyBets!C:C,MyBets!B:B,A20,MyBets!F:F,\"L\",MyBets!E:E,\"F\")*IFERROR(AVERAGEIFS(MyBets!D:D,MyBets!B:B,A20,MyBets!F:F,\"L\",MyBets!E:E,\"F\")-1,0))))","v":""},{"$f":"IF(A20=\"\",\"\",SUMIFS(MyBets!C:C,MyBets!B:B,A20,MyBets!F:F,\"L\",MyBets!E:E,\"F\")-SUMIFS(MyBets!C:C,MyBets!B:B,A20,MyBets!F:F,\"B\",MyBets!E:E,\"F\"))","v":""},"","","",null,null,""]
[{"$nulls":33},{"$f":"IF(A21=\"\",\"\",(SUMIFS(MyBets!C:C,MyBets!B:B,A21,MyBets!F:F,\"B\",MyBets!E:E,\"F\")*IFERROR(AVERAGEIFS(MyBets!D:D,MyBets!B:B,A21,MyBets!F:F,\"B\",MyBets!E:E,\"F\")-1,0)-(SUMIFS(MyBets!C:C,MyBets!B:B,A21,MyBets!F:F,\"L\",MyBets!E:E,\"F\")*IFERROR(AVERAGEIFS(MyBets!D:D,MyBets!B:B,A21,MyBets!F:F,\"L\",MyBets!E:E,\"F\")-1,0))))","v":""},{"$f":"IF(A21=\"\",\"\",SUMIFS(MyBets!C:C,MyBets!B:B,A21,MyBets!F:F,\"L\",MyBets!E:E,\"F\")-SUMIFS(MyBets!C:C,MyBets!B:B,A21,MyBets!F:F,\"B\",MyBets!E:E,\"F\"))","v":""},"","","",null,null,""]
[{"$nulls":33},{"$f":"IF(A22=\"\",\"\",(SUMIFS(MyBets!C:C,MyBets!B:B,A22,MyBets!F:F,\"B\",MyBets!E:E,\"F\")*IFERROR(AVERAGEIFS(MyBets!D:D,MyBets!B:B,A22,MyBets!F:F,\"B\",MyBets!E:E,\"F\")-1,0)-(SUMIFS(MyBets!C:C,MyBets!B:B,A22,MyBets!F:F,\"L\",MyBets!E:E,\"F\")*IFERROR(AVERAGEIFS(MyBets!D:D,MyBets!B:B,A22,MyBets!F:F,\"L\",MyBets!E:E,\"F\")-1,0))))","v":""},{"$f":"IF(A22=\"\",\"\",SUMIFS(MyBets!C:C,MyBets!B:B,A22,MyBets!F:F,\"L\",MyBets!E:E,\"F\")-SUMIFS(MyBets!C:C,MyBets!B:B,A22,MyBets!F:F,\"B\",MyBets!E:E,\"F\"))","v":""},"","","",null,null,""]
[{"$nulls":33},{"$f":"IF(A23=\"\",\"\",(SUMIFS(MyBets!C:C,MyBets!B:B,A23,MyBets!F:F,\"B\",MyBets!E:E,\"F\")*IFERROR(AVERAGEIFS(MyBets!D:D,MyBets!B:B,A23,MyBets!F:F,\"B\",MyBets!E:E,\"F\")-1,0)-(SUMIFS(MyBets!C:C,MyBets!B:B,A23,MyBets!F:F,\"L\",MyBets!E:E,\"F\")*IFERROR(AVERAGEIFS(MyBets!D:D,MyBets!B:B,A23,MyBets!F:F,\"L\",MyBets!E:E,\"F\")-1,0))))","v":""},{"$f":"IF(A23=\"\",\"\",SUMIFS(MyBets!C:C,MyBets!B:B,A23,MyBets!F:F,\"L\",MyBets!E:E,\"F\")-SUMIFS(MyBets!C:C,MyBets!B:B,A23,MyBets!F:F,\"B\",MyBets!E:E,\"F\"))","v":""},"","","",null,null,""]
[{"$nulls":33},{"$f":"IF(A24=\"\",\"\",(SUMIFS(MyBets!C:C,MyBets!B:B,A24,MyBets!F:F,\"B\",MyBets!E:E,\"F\")*IFERROR(AVERAGEIFS(MyBets!D:D,MyBets!B:B,A24,MyBets!F:F,\"B\",MyBets!E:E,\"F\")-1,0)-(SUMIFS(MyBets!C:C,MyBets!B:B,A24,MyBets!F:F,\"L\",MyBets!E:E,\"F\")*IFERROR(AVERAGEIFS(MyBets!D:D,MyBets!B:B,A24,MyBets!F:F,\"L\",MyBets!E:E,\"F\")-1,0))))","v":""},{"$f":"IF(A24=\"\",\"\",SUMIFS(MyBets!C:C,MyBets!B:B,A24,MyBets!F:F,\"L\",MyBets!E:E,\"F\")-SUMIFS(MyBets!C:C,MyBets!B:B,A24,MyBets!F:F,\"B\",MyBets!E:E,\"F\"))","v":""},"","","",null,null,""]
[{"$nulls":33},{"$f":"IF(A25=\"\",\"\",(SUMIFS(MyBets!C:C,MyBets!B:B,A25,MyBets!F:F,\"B\",MyBets!E:E,\"F\")*IFERROR(AVERAGEIFS(MyBets!D:D,MyBets!B:B,A25,MyBets!F:F,\"B\",MyBets!E:E,\"F\")-1,0)-(SUMIFS(MyBets!C:C,MyBets!B:B,A25,MyBets!F:F,\"L\",MyBets!E:E,\"F\")*IFERROR(AVERAGEIFS(MyBets!D:D,MyBets!B:B,A25,MyBets!F:F,\"L\",MyBets!E:E,\"F\")-1,0))))","v":""},{"$f":"IF(A25=\"\",\"\",SUMIFS(MyBets!C:C,MyBets!B:B,A25,MyBets!F:F,\"L\",MyBets!E:E,\"F\")-SUMIFS(MyBets!C:C,MyBets!B:B,A25,MyBets!F:F,\"B\",MyBets!E:E,\"F\"))","v":""},"","","",null,null,""]
[{"$nulls":33},{"$f":"IF(A26=\"\",\"\",(SUMIFS(MyBets!C:C,MyBets!B:B,A26,MyBets!F:F,\"B\",MyBets!E:E,\"F\")*IFERROR(AVERAGEIFS(MyBets!D:D,MyBets!B:B,A26,MyBets!F:F,\"B\",MyBets!E:E,\"F\")-1,0)-(SUMIFS(MyBets!C:C,MyBets!B:B,A26,MyBets!F:F,\"L\",MyBets!E:E,\"F\")*IFERROR(AVERAGEIFS(MyBets!D:D,MyBets!B:B,A26,MyBets!F:F,\"L\",MyBets!E:E,\"F\")-1,0))))","v":""},{"$f":"IF(A26=\"\",\"\",SUMIFS(MyBets!C:C,MyBets!B:B,A26,MyBets!F:F,\"L\",MyBets!E:E,\"F\")-SUMIFS(MyBets!C:C,MyBets!B:B,A26,MyBets!F:F,\"B\",MyBets!E:E,\"F\"))","v":""},"","","",null,null,""]
[{"$nulls":33},{"$f":"IF(A27=\"\",\"\",(SUMIFS(MyBets!C:C,MyBets!B:B,A27,MyBets!F:F,\"B\",MyBets!E:E,\"F\")*IFERROR(AVERAGEIFS(MyBets!D:D,MyBets!B:B,A27,MyBets!F:F,\"B\",MyBets!E:E,\"F\")-1,0)-(SUMIFS(MyBets!C:C,MyBets!B:B,A27,MyBets!F:F,\"L\",MyBets!E:E,\"F\")*IFERROR(AVERAGEIFS(MyBets!D:D,MyBets!B:B,A27,MyBets!F:F,\"L\",MyBets!E:E,\"F\")-1,0))))","v":""},{"$f":"IF(A27=\"\",\"\",SUMIFS(MyBets!C:C,MyBets!B:B,A27,MyBets!F:F,\"L\",MyBets!E:E,\"F\")-SUMIFS(MyBets!C:C,MyBets!B:B,A27,MyBets!F:F,\"B\",MyBets!E:E,\"F\"))","v":""},"","","",null,null,""]
[{"$nulls":33},{"$f":"IF(A28=\"\",\"\",(SUMIFS(MyBets!C:C,MyBets!B:B,A28,MyBets!F:F,\"B\",MyBets!E:E,\"F\")*IFERROR(AVERAGEIFS(MyBets!D:D,MyBets!B:B,A28,MyBets!F:F,\"B\",MyBets!E:E,\"F\")-1,0)-(SUMIFS(MyBets!C:C,MyBets!B:B,A28,MyBets!F:F,\"L\",MyBets!E:E,\"F\")*IFERROR(AVERAGEIFS(MyBets!D:D,MyBets!B:B,A28,MyBets!F:F,\"L\",MyBets!E:E,\"F\")-1,0))))","v":""},{"$f":"IF(A28=\"\",\"\",SUMIFS(MyBets!C:C,MyBets!B:B,A28,MyBets!F:F,\"L\",MyBets!E:E,\"F\")-SUMIFS(MyBets!C:C,MyBets!B:B,A28,MyBets!F:F,\"B\",MyBets!E:E,\"F\"))","v":""},"","","",null,null,""]
[{"$nulls":33},{"$f":"IF(A29=\"\",\"\",(SUMIFS(MyBets!C:C,MyBets!B:B,A29,MyBets!F:F,\"B\",MyBets!E:E,\"F\")*IFERROR(AVERAGEIFS(MyBets!D:D,MyBets!B:B,A29,MyBets!F:F,\"B\",MyBets!E:E,\"F\")-1,0)-(SUMIFS(MyBets!C:C,MyBets!B:B,A29,MyBets!F:F,\"L\",MyBets!E:E,\"F\")*IFERROR(AVERAGEIFS(MyBets!D:D,MyBets!B:B,A29,MyBets!F:F,\"L\",MyBets!E:E,\"F\")-1,0))))","v":""},{"$f":"IF(A29=\"\",\"\",SUMIFS(MyBets!C:C,MyBets!B:B,A29,MyBets!F:F,\"L\",MyBets!E:E,\"F\")-SUMIFS(MyBets!C:C,MyBets!B:B,A29,MyBets!F:F,\"B\",MyBets!E:E,\"F\"))","v":""},"","","",null,null,""]
[{"$nulls":33},{"$f":"IF(A30=\"\",\"\",(SUMIFS(MyBets!C:C,MyBets!B:B,A30,MyBets!F:F,\"B\",MyBets!E:E,\"F\")*IFERROR(AVERAGEIFS(MyBets!D:D,MyBets!B:B,A30,MyBets!F:F,\"B\",MyBets!E:E,\"F\")-1,0)-(SUMIFS(MyBets!C:C,MyBets!B:B,A30,MyBets!F:F,\"L\",MyBets!E:E,\"F\")*IFERROR(AVERAGEIFS(MyBets!D:D,MyBets!B:B,A30,MyBets!F:F,\"L\",MyBets!E:E,\"F\")-1,0))))","v":""},{"$f":"IF(A30=\"\",\"\",SUMIFS(MyBets!C:C,MyBets!B:B,A30,MyBets!F:F,\"L\",MyBets!E:E,\"F\")-SUMIFS(MyBets!C:C,MyBets!B:B,A30,MyBets!F:F,\"B\",MyBets!E:E,\"F\"))","v":""},"","","",null,null,""]
[{"$nulls":33},{"$f":"IF(A31=\"\",\"\",(SUMIFS(MyBets!C:C,MyBets!B:B,A31,MyBets!F:F,\"B\",MyBets!E:E,\"F\")*IFERROR(AVERAGEIFS(MyBets!D:D,MyBets!B:B,A31,MyBets!F:F,\"B\",MyBets!E:E,\"F\")-1,0)-(SUMIFS(MyBets!C:C,MyBets!B:B,A31,MyBets!F:F,\"L\",MyBets!E:E,\"F\")*IFERROR(AVERAGEIFS(MyBets!D:D,MyBets!B:B,A31,MyBets!F:F,\"L\",MyBets!E:E,\"F\")-1,0))))","v":""},{"$f":"IF(A31=\"\",\"\",SUMIFS(MyBets!C:C,MyBets!B:B,A31,MyBets!F:F,\"L\",MyBets!E:E,\"F\")-SUMIFS(MyBets!C:C,MyBets!B:B,A31,MyBets!F:F,\"B\",MyBets!E:E,\"F\"))","v":""},"","","",null,null,""]
[{"$nulls":33},{"$f":"IF(A32=\"\",\"\",(SUMIFS(MyBets!C:C,MyBets!B:B,A32,MyBets!F:F,\"B\",MyBets!E:E,\"F\")*IFERROR(AVERAGEIFS(MyBets!D:D,MyBets!B:B,A32,MyBets!F:F,\"B\",MyBets!E:E,\"F\")-1,0)-(SUMIFS(MyBets!C:C,MyBets!B:B,A32,MyBets!F:F,\"L\",MyBets!E:E,\"F\")*IFERROR(AVERAGEIFS(MyBets!D:D,MyBets!B:B,A32,MyBets!F:F,\"L\",MyBets!E:E,\"F\")-1,0))))","v":""},{"$f":"IF(A32=\"\",\"\",SUMIFS(MyBets!C:C,MyBets!B:B,A32,MyBets!F:F,\"L\",MyBets!E:E,\"F\")-SUMIFS(MyBets!C:C,MyBets!B:B,A32,MyBets!F:F,\"B\",MyBets!E:E,\"F\"))","v":""},"","","",null,null,""]
[{"$nulls":33},{"$f":"IF(A33=\"\",\"\",(SUMIFS(MyBets!C:C,MyBets!B:B,A33,MyBets!F:F,\"B\",MyBets!E:E,\"F\")*IFERROR(AVERAGEIFS(MyBets!D:D,MyBets!B:B,A33,MyBets!F:F,\"B\",MyBets!E:E,\"F\")-1,0)-(SUMIFS(MyBets!C:C,MyBets!B:B,A33,MyBets!F:F,\"L\",MyBets!E:E,\"F\")*IFERROR(AVERAGEIFS(MyBets!D:D,MyBets!B:B,A33,MyBets!F:F,\"L\",MyBets!E:E,\"F\")-1,0))))","v":""},{"$f":"IF(A33=\"\",\"\",SUMIFS(MyBets!C:C,MyBets!B:B,A33,MyBets!F:F,\"L\",MyBets!E:E,\"F\")-SUMIFS(MyBets!C:C,MyBets!B:B,A33,MyBets!F:F,\"B\",MyBets!E:E,\"F\"))","v":""},"","","",null,null,""]
[{"$nulls":33},{"$f":"IF(A34=\"\",\"\",(SUMIFS(MyBets!C:C,MyBets!B:B,A34,MyBets!F:F,\"B\",MyBets!E:E,\"F\")*IFERROR(AVERAGEIFS(MyBets!D:D,MyBets!B:B,A34,MyBets!F:F,\"B\",MyBets!E:E,\"F\")-1,0)-(SUMIFS(MyBets!C:C,MyBets!B:B,A34,MyBets!F:F,\"L\",MyBets!E:E,\"F\")*IFERROR(AVERAGEIFS(MyBets!D:D,MyBets!B:B,A34,MyBets!F:F,\"L\",MyBets!E:E,\"F\")-1,0))))","v":""},{"$f":"IF(A34=\"\",\"\",SUMIFS(MyBets!C:C,MyBets!B:B,A34,MyBets!F:F,\"L\",MyBets!E:E,\"F\")-SUMIFS(MyBets!C:C,MyBets!B:B,A34,MyBets!F:F,\"B\",MyBets!E:E,\"F\"))","v":""},"","","",null,null,""]
[{"$nulls":33},{"$f":"IF(A35=\"\",\"\",(SUMIFS(MyBets!C:C,MyBets!B:B,A35,MyBets!F:F,\"B\",MyBets!E:E,\"F\")*IFERROR(AVERAGEIFS(MyBets!D:D,MyBets!B:B,A35,MyBets!F:F,\"B\",MyBets!E:E,\"F\")-1,0)-(SUMIFS(MyBets!C:C,MyBets!B:B,A35,MyBets!F:F,\"L\",MyBets!E:E,\"F\")*IFERROR(AVERAGEIFS(MyBets!D:D,MyBets!B:B,A35,MyBets!F:F,\"L\",MyBets!E:E,\"F\")-1,0))))","v":""},{"$f":"IF(A35=\"\",\"\",SUMIFS(MyBets!C:C,MyBets!B:B,A35,MyBets!F:F,\"L\",MyBets!E:E,\"F\")-SUMIFS(MyBets!C:C,MyBets!B:B,A35,MyBets!F:F,\"B\",MyBets!E:E,\"F\"))","v":""},"","","",null,null,""]
[{"$nulls":33},{"$f":"IF(A36=\"\",\"\",(SUMIFS(MyBets!C:C,MyBets!B:B,A36,MyBets!F:F,\"B\",MyBets!E:E,\"F\")*IFERROR(AVERAGEIFS(MyBets!D:D,MyBets!B:B,A36,MyBets!F:F,\"B\",MyBets!E:E,\"F\")-1,0)-(SUMIFS(MyBets!C:C,MyBets!B:B,A36,MyBets!F:F,\"L\",MyBets!E:E,\"F\")*IFERROR(AVERAGEIFS(MyBets!D:D,MyBets!B:B,A36,MyBets!F:F,\"L\",MyBets!E:E,\"F\")-1,0))))","v":""},{"$f":"IF(A36=\"\",\"\",SUMIFS(MyBets!C:C,MyBets!B:B,A36,MyBets!F:F,\"L\",MyBets!E:E,\"F\")-SUMIFS(MyBets!C:C,MyBets!B:B,A36,MyBets!F:F,\"B\",MyBets!E:E,\"F\"))","v":""},"","","",null,null,""]
[{"$nulls":33},{"$f":"IF(A37=\"\",\"\",(SUMIFS(MyBets!C:C,MyBets!B:B,A37,MyBets!F:F,\"B\",MyBets!E:E,\"F\")*IFERROR(AVERAGEIFS(MyBets!D:D,MyBets!B:B,A37,MyBets!F:F,\"B\",MyBets!E:E,\"F\")-1,0)-(SUMIFS(MyBets!C:C,MyBets!B:B,A37,MyBets!F:F,\"L\",MyBets!E:E,\"F\")*IFERROR(AVERAGEIFS(MyBets!D:D,MyBets!B:B,A37,MyBets!F:F,\"L\",MyBets!E:E,\"F\")-1,0))))","v":""},{"$f":"IF(A37=\"\",\"\",SUMIFS(MyBets!C:C,MyBets!B:B,A37,MyBets!F:F,\"L\",MyBets!E:E,\"F\")-SUMIFS(MyBets!C:C,MyBets!B:B,A37,MyBets!F:F,\"B\",MyBets!E:E,\"F\"))","v":""},"",{"$f":"IF(AH37=AI37,\"\",IF(AH37>AI37,IF(H37=0,0,H37),IF(F37=0,0,F37)))","v":""},{"$f":"IF(OR(AH37=AI37,AK37=0),\"\",IF(AH37>AI37,(AH37-AI37)/AK37,(AI37-AH37)/AK37))","v":""},null,null,{"$f":"IF(A37=\"\",\"\",X37+SUMIF($AJ$5:$AJ$55,\"LAY\",$AL$5:$AL$55)-SUMIF($AJ$5:$AJ$55,\"BACK\",$AL$5:$AL$55)+IF(AJ37=\"LAY\",-AL37*(AK37),IF(AJ37=\"BACK\",AL37*AK37,0)))","v":""}]
[{"$nulls":33},{"$f":"IF(A38=\"\",\"\",(SUMIFS(MyBets!C:C,MyBets!B:B,A38,MyBets!F:F,\"B\",MyBets!E:E,\"F\")*IFERROR(AVERAGEIFS(MyBets!D:D,MyBets!B:B,A38,MyBets!F:F,\"B\",MyBets!E:E,\"F\")-1,0)-(SUMIFS(MyBets!C:C,MyBets!B:B,A38,MyBets!F:F,\"L\",MyBets!E:E,\"F\")*IFERROR(AVERAGEIFS(MyBets!D:D,MyBets!B:B,A38,MyBets!F:F,\"L\",MyBets!E:E,\"F\")-1,0))))","v":""},{"$f":"IF(A38=\"\",\"\",SUMIFS(MyBets!C:C,MyBets!B:B,A38,MyBets!F:F,\"L\",MyBets!E:E,\"F\")-SUMIFS(MyBets!C:C,MyBets!B:B,A38,MyBets!F:F,\"B\",MyBets!E:E,\"F\"))","v":""},"","","",null,null,""]
[{"$nulls":33},{"$f":"IF(A39=\"\",\"\",(SUMIFS(MyBets!C:C,MyBets!B:B,A39,MyBets!F:F,\"B\",MyBets!E:E,\"F\")*IFERROR(AVERAGEIFS(MyBets!D:D,MyBets!B:B,A39,MyBets!F:F,\"B\",MyBets!E:E,\"F\")-1,0)-(SUMIFS(MyBets!C:C,MyBets!B:B,A39,MyBets!F:F,\"L\",MyBets!E:E,\"F\")*IFERROR(AVERAGEIFS(MyBets!D:D,MyBets!B:B,A39,MyBets!F:F,\"L\",MyBets!E:E,\"F\")-1,0))))","v":""},{"$f":"IF(A39=\"\",\"\",SUMIFS(MyBets!C:C,MyBets!B:B,A39,MyBets!F:F,\"L\",MyBets!E:E,\"F\")-SUMIFS(MyBets!C:C,MyBets!B:B,A39,MyBets!F:F,\"B\",MyBets!E:E,\"F\"))","v":""},"","","",null,null,""]
[{"$nulls":33},{"$f":"IF(A40=\"\",\"\",(SUMIFS(MyBets!C:C,MyBets!B:B,A40,MyBets!F:F,\"B\",MyBets!E:E,\"F\")*IFERROR(AVERAGEIFS(MyBets!D:D,MyBets!B:B,A40,MyBets!F:F,\"B\",MyBets!E:E,\"F\")-1,0)-(SUMIFS(MyBets!C:C,MyBets!B:B,A40,MyBets!F:F,\"L\",MyBets!E:E,\"F\")*IFERROR(AVERAGEIFS(MyBets!D:D,MyBets!B:B,A40,MyBets!F:F,\"L\",MyBets!E:E,\"F\")-1,0))))","v":""},{"$f":"IF(A40=\"\",\"\",SUMIFS(MyBets!C:C,MyBets!B:B,A40,MyBets!F:F,\"L\",MyBets!E:E,\"F\")-SUMIFS(MyBets!C:C,MyBets!B:B,A40,MyBets!F:F,\"B\",MyBets!E:E,\"F\"))","v":""},"","","",null,null,""]
[{"$nulls":33},{"$f":"IF(A41=\"\",\"\",(SUMIFS(MyBets!C:C,MyBets!B:B,A41,MyBets!F:F,\"B\",MyBets!E:E,\"F\")*IFERROR(AVERAGEIFS(MyBets!D:D,MyBets!B:B,A41,MyBets!F:F,\"B\",MyBets!E:E,\"F\")-1,0)-(SUMIFS(MyBets!C:C,MyBets!B:B,A41,MyBets!F:F,\"L\",MyBets!E:E,\"F\")*IFERROR(AVERAGEIFS(MyBets!D:D,MyBets!B:B,A41,MyBets!F:F,\"L\",MyBets!E:E,\"F\")-1,0))))","v":""},{"$f":"IF(A41=\"\",\"\",SUMIFS(MyBets!C:C,MyBets!B:B,A41,MyBets!F:F,\"L\",MyBets!E:E,\"F\")-SUMIFS(MyBets!C:C,MyBets!B:B,A41,MyBets!F:F,\"B\",MyBets!E:E,\"F\"))","v":""},"","","",null,null,""]
[{"$nulls":33},{"$f":"IF(A42=\"\",\"\",(SUMIFS(MyBets!C:C,MyBets!B:B,A42,MyBets!F:F,\"B\",MyBets!E:E,\"F\")*IFERROR(AVERAGEIFS(MyBets!D:D,MyBets!B:B,A42,MyBets!F:F,\"B\",MyBets!E:E,\"F\")-1,0)-(SUMIFS(MyBets!C:C,MyBets!B:B,A42,MyBets!F:F,\"L\",MyBets!E:E,\"F\")*IFERROR(AVERAGEIFS(MyBets!D:D,MyBets!B:B,A42,MyBets!F:F,\"L\",MyBets!E:E,\"F\")-1,0))))","v":""},{"$f":"IF(A42=\"\",\"\",SUMIFS(MyBets!C:C,MyBets!B:B,A42,MyBets!F:F,\"L\",MyBets!E:E,\"F\")-SUMIFS(MyBets!C:C,MyBets!B:B,A42,MyBets!F:F,\"B\",MyBets!E:E,\"F\"))","v":""},"","","",null,null,""]
[{"$nulls":33},{"$f":"IF(A43=\"\",\"\",(SUMIFS(MyBets!C:C,MyBets!B:B,A43,MyBets!F:F,\"B\",MyBets!E:E,\"F\")*IFERROR(AVERAGEIFS(MyBets!D:D,MyBets!B:B,A43,MyBets!F:F,\"B\",MyBets!E:E,\"F\")-1,0)-(SUMIFS(MyBets!C:C,MyBets!B:B,A43,MyBets!F:F,\"L\",MyBets!E:E,\"F\")*IFERROR(AVERAGEIFS(MyBets!D:D,MyBets!B:B,A43,MyBets!F:F,\"L\",MyBets!E:E,\"F\")-1,0))))","v":""},{"$f":"IF(A43=\"\",\"\",SUMIFS(MyBets!C:C,MyBets!B:B,A43,MyBets!F:F,\"L\",MyBets!E:E,\"F\")-SUMIFS(MyBets!C:C,MyBets!B:B,A43,MyBets!F:F,\"B\",MyBets!E:E,\"F\"))","v":""},"","","",null,null,""]
[{"$nulls":33},{"$f":"IF(A44=\"\",\"\",(SUMIFS(MyBets!C:C,MyBets!B:B,A44,MyBets!F:F,\"B\",MyBets!E:E,\"F\")*IFERROR(AVERAGEIFS(MyBets!D:D,MyBets!B:B,A44,MyBets!F:F,\"B\",MyBets!E:E,\"F\")-1,0)-(SUMIFS(MyBets!C:C,MyBets!B:B,A44,MyBets!F:F,\"L\",MyBets!E:E,\"F\")*IFERROR(AVERAGEIFS(MyBets!D:D,MyBets!B:B,A44,MyBets!F:F,\"L\",MyBets!E:E,\"F\")-1,0))))","v":""},{"$f":"IF(A44=\"\",\"\",SUMIFS(MyBets!C:C,MyBets!B:B,A44,MyBets!F:F,\"L\",MyBets!E:E,\"F\")-SUMIFS(MyBets!C:C,MyBets!B:B,A44,MyBets!F:F,\"B\",MyBets!E:E,\"F\"))","v":""},"","","",null,null,""]
[{"$nulls":33},{"$f":"IF(A45=\"\",\"\",(SUMIFS(MyBets!C:C,MyBets!B:B,A45,MyBets!F:F,\"B\",MyBets!E:E,\"F\")*IFERROR(AVERAGEIFS(MyBets!D:D,MyBets!B:B,A45,MyBets!F:F,\"B\",MyBets!E:E,\"F\")-1,0)-(SUMIFS(MyBets!C:C,MyBets!B:B,A45,MyBets!F:F,\"L\",MyBets!E:E,\"F\")*IFERROR(AVERAGEIFS(MyBets!D:D,MyBets!B:B,A45,MyBets!F:F,\"L\",MyBets!E:E,\"F\")-1,0))))","v":""},{"$f":"IF(A45=\"\",\"\",SUMIFS(MyBets!C:C,MyBets!B:B,A45,MyBets!F:F,\"L\",MyBets!E:E,\"F\")-SUMIFS(MyBets!C:C,MyBets!B:B,A45,MyBets!F:F,\"B\",MyBets!E:E,\"F\"))","v":""},"","","",null,null,""]
[{"$nulls":33},{"$f":"IF(A46=\"\",\"\",(SUMIFS(MyBets!C:C,MyBets!B:B,A46,MyBets!F:F,\"B\",MyBets!E:E,\"F\")*IFERROR(AVERAGEIFS(MyBets!D:D,MyBets!B:B,A46,MyBets!F:F,\"B\",MyBets!E:E,\"F\")-1,0)-(SUMIFS(MyBets!C:C,MyBets!B:B,A46,MyBets!F:F,\"L\",MyBets!E:E,\"F\")*IFERROR(AVERAGEIFS(MyBets!D:D,MyBets!B:B,A46,MyBets!F:F,\"L\",MyBets!E:E,\"F\")-1,0))))","v":""},{"$f":"IF(A46=\"\",\"\",SUMIFS(MyBets!C:C,MyBets!B:B,A46,MyBets!F:F,\"L\",MyBets!E:E,\"F\")-SUMIFS(MyBets!C:C,MyBets!B:B,A46,MyBets!F:F,\"B\",MyBets!E:E,\"F\"))","v":""},"","","",null,null,""]
[{"$nulls":33},{"$f":"IF(A47=\"\",\"\",(SUMIFS(MyBets!C:C,MyBets!B:B,A47,MyBets!F:F,\"B\",MyBets!E:E,\"F\")*IFERROR(AVERAGEIFS(MyBets!D:D,MyBets!B:B,A47,MyBets!F:F,\"B\",MyBets!E:E,\"F\")-1,0)-(SUMIFS(MyBets!C:C,MyBets!B:B,A47,MyBets!F:F,\"L\",MyBets!E:E,\"F\")*IFERROR(AVERAGEIFS(MyBets!D:D,MyBets!B:B,A47,MyBets!F:F,\"L\",MyBets!E:E,\"F\")-1,0))))","v":""},{"$f":"IF(A47=\"\",\"\",SUMIFS(MyBets!C:C,MyBets!B:B,A47,MyBets!F:F,\"L\",MyBets!E:E,\"F\")-SUMIFS(MyBets!C:C,MyBets!B:B,A47,MyBets!F:F,\"B\",MyBets!E:E,\"F\"))","v":""},"","","",null,null,""]
[{"$nulls":33},{"$f":"IF(A48=\"\",\"\",(SUMIFS(MyBets!C:C,MyBets!B:B,A48,MyBets!F:F,\"B\",MyBets!E:E,\"F\")*IFERROR(AVERAGEIFS(MyBets!D:D,MyBets!B:B,A48,MyBets!F:F,\"B\",MyBets!E:E,\"F\")-1,0)-(SUMIFS(MyBets!C:C,MyBets!B:B,A48,MyBets!F:F,\"L\",MyBets!E:E,\"F\")*IFERROR(AVERAGEIFS(MyBets!D:D,MyBets!B:B,A48,MyBets!F:F,\"L\",MyBets!E:E,\"F\")-1,0))))","v":""},{"$f":"IF(A48=\"\",\"\",SUMIFS(MyBets!C:C,MyBets!B:B,A48,MyBets!F:F,\"L\",MyBets!E:E,\"F\")-SUMIFS(MyBets!C:C,MyBets!B:B,A48,MyBets!F:F,\"B\",MyBets!E:E,\"F\"))","v":""},"","","",null,null,""]
[{"$nulls":33},{"$f":"IF(A49=\"\",\"\",(SUMIFS(MyBets!C:C,MyBets!B:B,A49,MyBets!F:F,\"B\",MyBets!E:E,\"F\")*IFERROR(AVERAGEIFS(MyBets!D:D,MyBets!B:B,A49,MyBets!F:F,\"B\",MyBets!E:E,\"F\")-1,0)-(SUMIFS(MyBets!C:C,MyBets!B:B,A49,MyBets!F:F,\"L\",MyBets!E:E,\"F\")*IFERROR(AVERAGEIFS(MyBets!D:D,MyBets!B:B,A49,MyBets!F:F,\"L\",MyBets!E:E,\"F\")-1,0))))","v":""},{"$f":"IF(A49=\"\",\"\",SUMIFS(MyBets!C:C,MyBets!B:B,A49,MyBets!F:F,\"L\",MyBets!E:E,\"F\")-SUMIFS(MyBets!C:C,MyBets!B:B,A49,MyBets!F:F,\"B\",MyBets!E:E,\"F\"))","v":""},"","","",null,null,""]
[{"$nulls":33},{"$f":"IF(A50=\"\",\"\",(SUMIFS(MyBets!C:C,MyBets!B:B,A50,MyBets!F:F,\"B\",MyBets!E:E,\"F\")*IFERROR(AVERAGEIFS(MyBets!D:D,MyBets!B:B,A50,MyBets!F:F,\"B\",MyBets!E:E,\"F\")-1,0)-(SUMIFS(MyBets!C:C,MyBets!B:B,A50,MyBets!F:F,\"L\",MyBets!E:E,\"F\")*IFERROR(AVERAGEIFS(MyBets!D:D,MyBets!B:B,A50,MyBets!F:F,\"L\",MyBets!E:E,\"F\")-1,0))))","v":""},{"$f":"IF(A50=\"\",\"\",SUMIFS(MyBets!C:C,MyBets!B:B,A50,MyBets!F:F,\"L\",MyBets!E:E,\"F\")-SUMIFS(MyBets!C:C,MyBets!B:B,A50,MyBets!F:F,\"B\",MyBets!E:E,\"F\"))","v":""},"","","",null,null,""]
[{"$nulls":33},{"$f":"IF(A51=\"\",\"\",(SUMIFS(MyBets!C:C,MyBets!B:B,A51,MyBets!F:F,\"B\",MyBets!E:E,\"F\")*IFERROR(AVERAGEIFS(MyBets!D:D,MyBets!B:B,A51,MyBets!F:F,\"B\",MyBets!E:E,\"F\")-1,0)-(SUMIFS(MyBets!C:C,MyBets!B:B,A51,MyBets!F:F,\"L\",MyBets!E:E,\"F\")*IFERROR(AVERAGEIFS(MyBets!D:D,MyBets!B:B,A51,MyBets!F:F,\"L\",MyBets!E:E,\"F\")-1,0))))","v":""},{"$f":"IF(A51=\"\",\"\",SUMIFS(MyBets!C:C,MyBets!B:B,A51,MyBets!F:F,\"L\",MyBets!E:E,\"F\")-SUMIFS(MyBets!C:C,MyBets!B:B,A51,MyBets!F:F,\"B\",MyBets!E:E,\"F\"))","v":""},"","","",null,null,""]
[{"$nulls":33},{"$f":"IF(A52=\"\",\"\",(SUMIFS(MyBets!C:C,MyBets!B:B,A52,MyBets!F:F,\"B\",MyBets!E:E,\"F\")*IFERROR(AVERAGEIFS(MyBets!D:D,MyBets!B:B,A52,MyBets!F:F,\"B\",MyBets!E:E,\"F\")-1,0)-(SUMIFS(MyBets!C:C,MyBets!B:B,A52,MyBets!F:F,\"L\",MyBets!E:E,\"F\")*IFERROR(AVERAGEIFS(MyBets!D:D,MyBets!B:B,A52,MyBets!F:F,\"L\",MyBets!E:E,\"F\")-1,0))))","v":""},{"$f":"IF(A52=\"\",\"\",SUMIFS(MyBets!C:C,MyBets!B:B,A52,MyBets!F:F,\"L\",MyBets!E:E,\"F\")-SUMIFS(MyBets!C:C,MyBets!B:B,A52,MyBets!F:F,\"B\",MyBets!E:E,\"F\"))","v":""},"","","",null,null,""]
[{"$nulls":33},{"$f":"IF(A53=\"\",\"\",(SUMIFS(MyBets!C:C,MyBets!B:B,A53,MyBets!F:F,\"B\",MyBets!E:E,\"F\")*IFERROR(AVERAGEIFS(MyBets!D:D,MyBets!B:B,A53,MyBets!F:F,\"B\",MyBets!E:E,\"F\")-1,0)-(SUMIFS(MyBets!C:C,MyBets!B:B,A53,MyBets!F:F,\"L\",MyBets!E:E,\"F\")*IFERROR(AVERAGEIFS(MyBets!D:D,MyBets!B:B,A53,MyBets!F:F,\"L\",MyBets!E:E,\"F\")-1,0))))","v":""},{"$f":"IF(A53=\"\",\"\",SUMIFS(MyBets!C:C,MyBets!B:B,A53,MyBets!F:F,\"L\",MyBets!E:E,\"F\")-SUMIFS(MyBets!C:C,MyBets!B:B,A53,MyBets!F:F,\"B\",MyBets!E:E,\"F\"))","v":""},"","","",null,null,""]
[{"$nulls":33},{"$f":"IF(A54=\"\",\"\",(SUMIFS(MyBets!C:C,MyBets!B:B,A54,MyBets!F:F,\"B\",MyBets!E:E,\"F\")*IFERROR(AVERAGEIFS(MyBets!D:D,MyBets!B:B,A54,MyBets!F:F,\"B\",MyBets!E:E,\"F\")-1,0)-(SUMIFS(MyBets!C:C,MyBets!B:B,A54,MyBets!F:F,\"L\",MyBets!E:E,\"F\")*IFERROR(AVERAGEIFS(MyBets!D:D,MyBets!B:B,A54,MyBets!F:F,\"L\",MyBets!E:E,\"F\")-1,0))))","v":""},{"$f":"IF(A54=\"\",\"\",SUMIFS(MyBets!C:C,MyBets!B:B,A54,MyBets!F:F,\"L\",MyBets!E:E,\"F\")-SUMIFS(MyBets!C:C,MyBets!B:B,A54,MyBets!F:F,\"B\",MyBets!E:E,\"F\"))","v":""},"","","",null,null,""]
[{"$nulls":33},{"$f":"IF(A55=\"\",\"\",(SUMIFS(MyBets!C:C,MyBets!B:B,A55,MyBets!F:F,\"B\",MyBets!E:E,\"F\")*IFERROR(AVERAGEIFS(MyBets!D:D,MyBets!B:B,A55,MyBets!F:F,\"B\",MyBets!E:E,\"F\")-1,0)-(SUMIFS(MyBets!C:C,MyBets!B:B,A55,MyBets!F:F,\"L\",MyBets!E:E,\"F\")*IFERROR(AVERAGEIFS(MyBets!D:D,MyBets!B:B,A55,MyBets!F:F,\"L\",MyBets!E:E,\"F\")-1,0))))","v":""},{"$f":"IF(A55=\"\",\"\",SUMIFS(MyBets!C:C,MyBets!B:B,A55,MyBets!F:F,\"L\",MyBets!E:E,\"F\")-SUMIFS(MyBets!C:C,MyBets!B:B,A55,MyBets!F:F,\"B\",MyBets!E:E,\"F\"))","v":""},"","","",null,null,""]

{"sheet":"MyBets","index":1,"n_rows":4,"n_cols":6,"rows_kept":4}
["Ref","Selection","Stake","Odds","Matched","Type"]
[12345,"Coolefind",10,5,"F","B"]
[12347,"Coolefind",10,9,"F","B"]
[12345,"Inaro",5,3,"F","B"]